Cogmind - Beta 15 *** ADVENTURER MODE // 2025.06.07 @ 16:17:21 Player: tcfire Result: Destroyed by S-10 Pest with Light Assault Rifle Performance ------------- Evolutions (1) 500 Regions Visited (3) 600 Robots Destroyed (29) 145 Value Destroyed (721) 721 Prototype IDs (4) 80 Alien Tech Used (0) 0 Bonus (0) 0 TOTAL SCORE: 2046 Bonus ------- None Cogmind --------- Core Integrity 0/400 Matter 287/300 Energy 78/100 System Corruption 0% Temperature Cool (0) Movement Walking (120) Location -9/Storage Parts ------- > --- POWER (1) -------- (None) > --- PROPULSION (2) --- Aluminum Leg Aluminum Leg > --- UTILITY (4) ------ Visual Processing Unit Transport Network Coupler > --- WEAPON (2) ------- Improved EM Shotgun Improved Assault Rifle > --- INVENTORY (5) ---- Ion Engine Aluminum Leg Advanced Beam Cannon Advanced Beam Cannon Peak State ------------ > --- POWER ------------ Ion Engine > --- PROPULSION ------- Aluminum Leg Aluminum Leg > --- UTILITY ---------- Heat Sink Visual Processing Unit Transport Network Coupler > --- WEAPON ----------- Improved EM Shotgun Advanced Beam Cannon > --- INVENTORY -------- Ion Engine Aluminum Leg Advanced Beam Cannon [Rating: 13] Favorites ----------- Power Ion Engine Engine Ion Engine Propulsion Aluminum Leg Leg Aluminum Leg Flight Unit Flight Unit Utility Small Storage Unit Device Heat Sink Storage Small Storage Unit Processor Transport Network Coupler Weapon Advanced Beam Cannon Energy Gun Improved EM Shotgun Energy Cannon Advanced Beam Cannon Ballistic Gun Assault Rifle Build | -11 -10 -9 -9 ------- Run | Yrd Mat Mat Sto Slots Evolved 2 | . . 2 . Power . | . . . . Propulsion . | . . . . Utility 2 | . . 2 . Weapon . | . . . . Parts Attached 24 | 6 1 2 15 Power 3 | 1 . . 2 Engine 3 | 1 . . 2 Core . | . . . . Reactor . | . . . . Propulsion 9 | 2 . 2 5 Treads . | . . . . Leg 8 | 2 . 1 5 Wheel . | . . . . Hover . | . . . . Flight 1 | . . 1 . Utility 5 | 1 1 . 3 Device 2 | . 1 . 1 Storage 1 | 1 . . . Processor 2 | . . . 2 Hackware . | . . . . Protection . | . . . . Artifact . | . . . . Weapon 7 | 2 . . 5 Energy Gun 3 | 1 . . 2 Energy Cannon 2 | . . . 2 Ballistic Gun 2 | 1 . . 1 Ballistic Cannon . | . . . . Launcher . | . . . . Special Weapon . | . . . . Impact Weapon . | . . . . Slashing Weapon . | . . . . Piercing Weapon . | . . . . Special Melee Weapon . | . . . . Unidentified Prototypes 4 | . . . 4 Parts Lost 11 | . . 7 4 Power 3 | . . 1 2 Propulsion 4 | . . 3 1 Utility 2 | . . 1 1 Weapon 2 | . . 2 . Highest Loss Streak 6 | . . 6 2 To Critical Strikes . | . . . . Average Backups 2 | 1 2 2 2 Power . | . 1 1 . Propulsion . | . 1 1 . Utility . | . . . . Weapon . | . . . . Tool/Special . | . . . . Unused Backups 3 | . . . 3 Power 1 | . . . 1 Propulsion 1 | . . . 1 Utility . | . . . . Weapon 1 | . . . 1 Tool/Special . | . . . . Average Slot Usage (%) 59 | . 92 56 54 Engine 7 | . 14 7 6 Leg 16 | . 28 18 13 Device 6 | . 7 8 5 Storage 4 | . 14 10 . Processor 5 | . . . 9 Energy Gun 7 | . 14 6 6 Energy Cannon 5 | . . . 9 Ballistic Gun 4 | . 14 6 2 Peak Build Rating 13 | 6 9 9 13 Average Rating 7 | 3 7 6 8 On Entrance 3 | . 6 9 . Naked Turns 40 | . . . 40 Heaviest Build 15 | 14 15 15 13 Greatest Support 20 | 20 20 20 20 Greatest Overweight (x) 2 | . . . 2 Average Overweight (x) . | . . . . Largest Inventory Capacity 8 | 8 8 8 5 Average Capacity 6 | 6 8 7 5 Most Carried 5 | 5 3 3 5 Average Carried 2 | 1 2 2 2 Final Capacity 8 | 8 8 5 5 Final Carried 4 | 1 3 2 4 Class Distribution -------------------- 66% | Mutant 33% | Scavenger-Mutant Dominant Class ---------------- Mutant | -10/Materials Mutant | -9/Materials Scavenger-Mutant | -9/Storage Resources | -11 -10 -9 -9 ----------- Run | Yrd Mat Mat Sto Matter Collected 510 | 103 60 60 287 Remotely . | . . . . Salvage Created 1149 | . 110 97 942 Parts 67 | . 6 9 52 Haulers Intercepted 3 | . . . 3 Recyclers Shooed 2 | . . 1 1 Parts Field Recycled . | . . . . Retrieved Matter . | . . . . Parts Self-Destructed . | . . . . Prevented . | . . . . Kills | -11 -10 -9 -9 ------- Run | Yrd Mat Mat Sto Combat Hostiles Destroyed 22 | . 2 2 18 Guns 10 | . 2 1 7 Cannons 9 | . . . 9 AOE 2 | . . 1 1 Classes Destroyed 7 | . 2 3 2 Hauler 3 | . . . 3 Recycler 1 | . . . 1 Operator 1 | . . 1 . Watcher 2 | . 1 . 1 Swarmer 7 | . . 1 6 Grunt 10 | . 2 . 8 Sentry 5 | . . 1 4 Best Kill Streak 5 | . 3 1 5 Combat Bots Only 4 | . 2 1 4 Max Kills in Single Turn 2 | . 1 1 2 Gunslinging 1 | . . . 1 Exploded 1 | . . 1 1 Melee . | . . . . Uniques/NPCs Destroyed . | . . . . Combat | -11 -10 -9 -9 -------- Run | Yrd Mat Mat Sto Hostile Shots Fired 230 | . 5 122 103 Missed 75 | . 4 40 31 Hits 155 | . 1 82 72 Projectile 155 | . 1 82 72 Critical Strikes 5 | . . 2 3 Damage Taken 1386 | . 12 814 560 Core 404 | . . 229 175 Absorbed by Shields . | . . . . Ignored by Resistances 418 | . 4 239 175 Core Remaining (%) 100 | 100 100 . . Volleys Fired 78 | . 8 13 57 Largest 2 | . 2 2 2 Hottest 136 | . 60 60 136 Shots Fired 135 | . 16 23 96 Gun 76 | . 16 23 37 Cannon 59 | . . . 59 Launcher . | . . . . Special . | . . . . Kinetic 36 | . 8 13 15 Thermal 59 | . . . 59 Explosive . | . . . . Electromagnetic 40 | . 8 10 22 Robot Hit Streak 12 | . 5 12 10 Robot Miss Streak 4 | . 1 2 4 Penetration Max . | . . . . Secondary Targets 3 | . . 1 2 Max Gunslinging Chain 1 | . . 1 1 Shots Hit Robots 99 | . 9 19 71 Core Hits 39 | . 5 6 28 Critical Kills 1 | . . . 1 Critical Parts Destroyed . | . . . . Critical Strikes 1 | . . . 1 Meltdown 1 | . . . 1 Melee Attacks . | . . . . Impact . | . . . . Slashing . | . . . . Piercing . | . . . . Sneak Attacks . | . . . . Combat Hostiles . | . . . . Follow-up Attacks . | . . . . Damage Inflicted 1883 | . 147 233 1503 Guns 882 | . 147 217 518 Cannons 842 | . . . 842 Explosions 127 | . . . 127 Melee . | . . . . Ramming 32 | . . 16 16 Kinetic 343 | . 26 125 192 Thermal 969 | . . . 969 Explosive . | . . . . Electromagnetic 539 | . 121 92 326 Impact . | . . . . Slashing . | . . . . Piercing . | . . . . Highest Corruption . | . . . . Average Corruption . | . . . . Corruption Purged . | . . . . Corruption Blocked . | . . . . Overload Shots . | . . . . Overflow Damage 17 | . . . 17 Projectiles 2 | . . . 2 Explosions 15 | . . . 15 Melee . | . . . . Knockbacks . | . . . . Impact . | . . . . Kinetic . | . . . . Secondary . | . . . . Self-Inflicted Damage 11 | . . 3 8 Shots . | . . . . Rammed 2 | . . 1 1 Targets Rammed 9 | . . 8 1 Kicked 7 | . . 7 . Crushed . | . . . . Highest Temperature 399 | . 9 10 399 Average Temperature 112 | . 9 3 119 Received Heat Transfer 597 | . 9 375 213 Effects 3 | . . . 3 Energy Bleed 1 | . . . 1 Matter Decay 1 | . . . 1 Damage (minor) 1 | . . . 1 Siege Activations . | . . . . Martial Activations . | . . . . Shielding Activations . | . . . . Robots Disrupted . | . . . . Combat Hostiles . | . . . . Robots Corrupted . | . . . . Combat Hostiles . | . . . . Parts Fried 2 | . . . 2 Impact Corruptions . | . . . . Robots Melted 1 | . . . 1 Combat Hostiles 1 | . . . 1 Parts Melted 3 | . . . 3 Heat Transferred 1717 | . . . 1717 Parts Sabotaged . | . . . . Parts Stolen . | . . . . Parts Stripped . | . . . . Power Chain Reactions 2 | . . . 2 Alert | -11 -10 -9 -9 ------- Run | Yrd Mat Mat Sto Maximum Alert Level 1 | . . . 1 Low Security (%) 92 | 100 100 100 87 Level 1 7 | . . . 12 Level 2 . | . . . . Level 3 . | . . . . Level 4 . | . . . . Level 5 . | . . . . High Security . | . . . . Max Security . | . . . . Peak Influence 251 | . 47 30 251 Initial 6 | . . 6 3 Average 66 | . 23 5 112 Influence Increases 626 | . 57 85 484 Destroy 0b10 Robot/C 440 | . 40 40 360 Destroy 0b10 Robot/NC 35 | . 5 5 25 Destroy Leader 110 | . 12 10 88 Successful Hack 3 | . . . 3 Destroy Structure 8 | . . . 8 Lose Combat Pursuer 30 | . . 30 . Influence Decreases 375 | . 40 92 243 Entered New Map 18 | . . 11 7 Time Decay 267 | . 40 31 196 Lost Part 90 | . . 50 40 Squads Dispatched 1 | . . . 1 Investigation . | . . . . Extermination . | . . . . Reinforcement 1 | . . . 1 Assault . | . . . . Garrison . | . . . . Intercept . | . . . . Searches Triggered . | . . . . Construction Impeded . | . . . . Haulers Reinforced . | . . . . Active Scanning Responses . | . . . . Cargo Convoy Interrupts . | . . . . Stealth | -11 -10 -9 -9 --------- Run | Yrd Mat Mat Sto Distress Signals 3 | . . 1 2 Communications Jammed . | . . . . Distress Signals . | . . . . Times Spotted 42 | . 4 16 22 Peak Tracking Total 7 | . 2 7 6 Tactical Retreats 1 | . . 1 . Traps | -11 -10 -9 -9 ------- Run | Yrd Mat Mat Sto Traps Triggered . | . . . . Indirectly . | . . . . Trap Hack Attempts . | . . . . Triggered . | . . . . Disarmed . | . . . . Reprogrammed . | . . . . Reused . | . . . . Traps Extracted . | . . . . Installed . | . . . . Triggered . | . . . . Machines | -11 -10 -9 -9 ---------- Run | Yrd Mat Mat Sto Machines Disabled . | . . . . Max in Single Turn . | . . . . Machines Repaired . | . . . . Machines Dismantled . | . . . . Machines Sabotaged . | . . . . Overloaded Fab Kills . | . . . . Hacking | -11 -10 -9 -9 --------- Run | Yrd Mat Mat Sto Machines Accessed 4 | . 1 . 3 Terminals 4 | . 1 . 3 Fabricators . | . . . . Repair Stations . | . . . . Recycling Units . | . . . . Scanalyzers . | . . . . Garrison Access . | . . . . Total Hacks 7 | . 2 . 5 Successful 3 | . . . 3 Failed 4 | . 2 . 2 Catastrophic 2 | . 2 . . Database Lockouts . | . . . . Manual . | . . . . Terminals 7 | . 2 . 5 Fabricators . | . . . . Repair Stations . | . . . . Recycling Units . | . . . . Scanalyzers . | . . . . Garrison Access . | . . . . Terminal Hacks 3 | . . . 3 Record 1 | . . . 1 Open Door 1 | . . . 1 Zone Layout 1 | . . . 1 Fabricator Hacks . | . . . . Repair Station Hacks . | . . . . Recycling Unit Hacks . | . . . . Scanalyzer . | . . . . Garrison Access Hacks . | . . . . Unauthorized Hacks . | . . . . Terminals . | . . . . Fabricators . | . . . . Repair Stations . | . . . . Recycling Units . | . . . . Scanalyzers . | . . . . Garrison Access . | . . . . Data Cores Recovered 1 | . . 1 . Used . | . . . . Hacking Detections 2 | . 1 . 1 Full Trace Events 1 | . 1 . . Feedback Events . | . . . . Feedback Blocked . | . . . . Robot Schematics Acquired . | . . . . Robots Built . | . . . . Authchips . | . . . . Time . | . . . . Total Robot Build Rating . | . . . . Part Schematics Acquired . | . . . . Parts Built . | . . . . Authchips . | . . . . Time . | . . . . Total Part Build Rating . | . . . . Parts Repaired . | . . . . Time . | . . . . Parts Recycled . | . . . . Recycled Matter . | . . . . Retrieved Matter . | . . . . Retrieved Components . | . . . . Parts Scanalyzed . | . . . . Part Schematics Acquired . | . . . . Parts Damaged . | . . . . Bothacking | -11 -10 -9 -9 ------------ Run | Yrd Mat Mat Sto Used RIF Installer . | . . . . Robots Hacked . | . . . . Non-combat . | . . . . Combat . | . . . . Robot Hacks Applied . | . . . . Relay Couplers Released . | . . . . Fabnet Peak Effective % . | . . . . Robots Rewired . | . . . . Allies Hacked . | . . . . Hacks Repelled . | . . . . Allies | -11 -10 -9 -9 -------- Run | Yrd Mat Mat Sto Total Allies . | . . . . Largest Group . | . . . . Highest-Rated Group . | . . . . Highest-Rated Ally . | . . . . Total Orders . | . . . . Ally Attacks . | . . . . Total Damage . | . . . . Kills . | . . . . Allies Corrupted . | . . . . Allies Melted . | . . . . Intel | -11 -10 -9 -9 ------- Run | Yrd Mat Mat Sto Active Infowar (turns) 274 | . . . 274 Optics 133 | . . . 133 T.N.C. 274 | . . . 274 Robot Analysis Total . | . . . . Derelict Logs Recovered . | . . . . Drone Launches . | . . . . Drone Recoveries . | . . . . Exploration | -11 -10 -9 -9 ------------- Run | Yrd Mat Mat Sto Turns Passed 821 | 60 96 206 459 Spaces Moved 482 | 44 57 149 232 Core 102 | 15 . . 87 Treads . | . . . . Legs 353 | 29 57 122 145 Wheels . | . . . . Hover . | . . . . Flight 27 | . . 27 . Fastest Speed 40 | 50 120 40 50 Average Speed 103 | 96 120 105 100 Slowest Speed 190 | 120 120 120 190 Overloaded Moves . | . . . . Propulsion Burnouts . | . . . . Robots Hopped 2 | . . 2 . Potential Cave-ins . | . . . . Cave-ins Triggered . | . . . . Exploration Rate (%) 20 | 4 18 18 41 Regions Visited 3 Branch Regions 1 Pre-discovered Areas . | . . . . Known Exits Taken . | . . . . Unknown Exits Taken 3 | 1 1 1 . Scrap Searched . | . . . . Spaces Dug . | . . . . Terrain Destroyed 7 | . . . 7 Melee . | . . . . Projectile . | . . . . AOE 7 | . . . 7 Terrain Rammed . | . . . . Walls Destroyed . | . . . . Machines Disabled . | . . . . Actions | -11 -10 -9 -9 --------- Run | Yrd Mat Mat Sto Total 665 | 61 68 172 364 Wait 44 | 5 . . 39 Move 475 | 43 56 145 231 Hop 2 | . . 2 . Pick Up 27 | 7 3 1 16 Fast Attach . | . . . . Attach 20 | 6 1 2 11 Detach . | . . . . Swap 5 | . . . 5 Drop 6 | . . 2 4 Fire 78 | . 8 13 57 Melee . | . . . . Ram 1 | . . . 1 Kick 7 | . . 7 . Crush . | . . . . Escape Stasis . | . . . . Rewire . | . . . . Trap . | . . . . Miscellaneous . | . . . . Route ------- -11/Scrapyard -10/Materials -9/Materials -9/Storage (discovered 1 exit: [*Mat]) History --------- Turn | Location | Event 12 | -11/Scrapyard | Discovered new exit (range 15) 61 | -11/Scrapyard | Entered Materials 133 | -10/Materials | Discovered new exit (range 14) 157 | -10/Materials | Entered another Materials area 157 | -9/Materials | Evolved 2 slots: Utility x2 309 | -9/Materials | Build established: Mutant 335 | -9/Materials | Lost 6 parts (1p2n1u2w) 358 | -9/Materials | Core integrity fell below 50% 359 | -9/Materials | Discovered new exit (range 8) 363 | -9/Materials | Entered Storage 494 | -9/Storage | Core integrity fell below 20% 786 | -9/Storage | Discovered new exit (range 18) 822 | -9/Storage | Destroyed by S-10 Pest with Light Assault Rifle Last Messages --------------- 00765_ U-05 Engineer lays Concrete. 00773_ Acquired 37 matter. 00778_ Acquired Aluminum Leg. 00781_ Dropped Aluminum Leg. 00782_ Acquired 10 matter. 00786_ EXIT=FOUND 00804_ C-30 ARC bursts open, deploying its payload. 00804_ S-10 Pest unfolds itself. 00805_ Heat Sink destroyed. 00808_ K-01 Serf collects debris. 00812_ S-10 Pest destroyed. 00812_ Switching to secondary target: S-10 Pest. 00812_ S-10 Pest destroyed. 00815_ K-01 Serf collects debris. 00816_ Ion Engine destroyed. 00818_ K-01 Serf collects debris. 00818_ S-10 Pest destroyed. 00818_ Switching to secondary target: S-10 Pest. 00821_ K-01 Serf collects debris. Map ----- +----------------------------------------------------+ | | | | | | | | | | | | | | | | | | | | | | | | | | | | | | | | | | | | | | | ??????????????????????????????????? | | ??????????????????????????????????? | | ??????????????????????????????????? | | ############################??????? | | % ^ #??????? | | %= a ^ #??????? | | !== ^ @ ####???? | | %[ #???? | | #???? | | #####+##+##### =[ #???? | | ??????? ???+ ^ =%s #???? | | ??????? ""???#############%% #???? | | ?????? ??????????????????k* #???? | | ?????? ?????????????????? #???? | | ????? ?????????????????? #???? | | ????? ?????????????????? #???? | | ????# ?????????????????? #???? | | ????# ??????????????????? #???? | | ????# ??????????????????? ##+#???? | | ????###??????????????????? #??????? | | ???????????????????????????#??????? | | ??????????????????????????????????? | | ??????????????????????????????????? | | ??????????????????????????????????? | | ??????????????????????????????????? | | ??????????????????????????????????? | | ??????????????????????????????????? | | ??????????????????????????????????? | | ??????????????????????????????????? | | ??????????????????????????????????? | | ??????????????????????????????????? | +----------------------------------------------------+ Best States ------------- Heat Dissipation 42 Energy Generation 10 Energy Capacity 250 Matter Stores 300 Matter Capacity 300 Sight Range 18 Terrain Scan Density 10 Resistance: KI 20 Resistance: TH 20 Resistance: EX 20 Resistance: EM 20 Resistance: I 20 Resistance: S 20 Resistance: P 20 Evasion (%) 62 Offensive Hacking 10 Item Schematics ----------------- None Robot Schematics ------------------ None Fabricated ------------ Nothing Repaired ---------- Nothing Alien Tech Used ----------------- None Achievements -------------- None Challenges ------------ None Game ------ Seed BoltPlatingSubcomponent Manual? 0 Play Time 00:08:58 Cumulative 33.4 hours Start 2025.06.07 @ 04:43:09 End 2025.06.07 @ 16:17:21 Sessions 1 Manual Loads 0 Difficulty Adventurer Special Mode None Game No. 40 Rogue 0 Adventurer 6 Explorer 34 Win Type - Total 1 Types 1/0/0/0/0/0/0/0/0/0 Lore% 14 Gallery% 39 Achievement% 38 Wizard Run 0 Options --------- Layout 1 ASCII 0 Keyboard 0 Movement Mouse Keybinds 0 Fullscreen 1 Font 42/SmallcapsGlow Map View 52x41 Zoom Use 0% Tactical HUD 1 Map Filters NONE Filters NONE Steam 1 RUN: 8ca072c5-5328-4f41-867b-2ba867854792